[Event "EYCC Open-U12 2019"]
[Site "Bratislava"]
[Date "2019.08.02"]
[Round "1.1"]
[White "Maurizzi, Marc Andria"]
[Black "Dovbnia, Nikita"]
[Result "1/2-1/2"]
[ECO "C42"]
[WhiteElo "2412"]
[BlackElo "1777"]
[Annotator "NA"]
[PlyCount "162"]
[EventDate "2019.08.02"]
[EventType "swiss"]
[EventCountry "SVK"]
[SourceTitle "playchess.com"]
[Source "ChessBase"]
[SourceQuality "1"]
[TimeControl "40/5400+30:1800+30"]

1. e4 {[%emt 0:00:00]} e5 {[%emt 0:00:00]} 2. Nf3 {[%emt 0:00:00]} Nf6 {[%emt 0:00:00]} 3. Nxe5 {[%emt 0:00:00]} d6 {[%emt 0:00:00]} 4. Nf3 {[%emt 0:00:00]} Nxe4 {[%emt 0:00:03]} 5. c4 {[%emt 0:00:14]} c6 {[%emt 0:03:51]} 6. Nc3 {[%emt 0:07:32]} Nxc3 {[%emt 0:02:57]} 7. bxc3 {[%emt 0:00:49]} d5 {[%emt 0:01:47]} 8. d4 {[%emt 0:01:01]} Bd6 {[%emt 0:00:49]} 9. Bd3 {[%emt 0:00:30]} dxc4 {[%emt 0:03:26]} 10. Bxc4 {[%emt 0:00:03]} O-O {[%emt 0:03:13]} 11. O-O {[%emt 0:00:37]} Bf5 {[%emt 0:05:00]} 12. Bd3 {[%emt 0:01:10]} Bxd3 {[%emt 0:00:50]} 13. Qxd3 {[%emt 0:00:01]} Nd7 {[%emt 0:03:48]} 14. c4 {[%emt 0:05:20]} h6 {[%emt 0:05:06]} 15. g3 {[%emt 0:09:05]} Re8 {[%emt 0:03:26]} 16. Rb1 {[%emt 0:01:53]} Bc7 {[%emt 0:05:46]} 17. Bd2 {[%emt 0:09:15]} Ne5 {[%emt 0:14:03]} 18. Nxe5 {[%emt 0:00:56]} Bxe5 {[%emt 0:00:02]} 19. Be3 {[%emt 0:03:27]} Qd7 {[%emt 0:06:06]} 20. Rfd1 {[%emt 0:01:03]} Bf6 {[%emt 0:00:20]} 21. d5 {[%emt 0:18:44]} b6 {[%emt 0:06:16]} 22. Re1 {[%emt 0:08:55]} Rad8 {[%emt 0:03:32]} 23. Rbd1 {[%emt 0:00:07]} h5 {[%emt 0:03:49]} 24. Bc1 {[%emt 0:17:40]} Rxe1+ {[%emt 0:09:33]} 25. Rxe1 {[%emt 0:00:01]} b5 {[%emt 0:01:08]} 26. cxb5 {[%emt 0:05:36]} Qxd5 {[%emt 0:01:14]} 27. Qxd5 {[%emt 0:00:05]} Rxd5 {[%emt 0:01:14]} 28. bxc6 {[%emt 0:00:04]} Rc5 {[%emt 0:00:04]} 29. Re8+ {[%emt 0:00:10]} Kh7 {[%emt 0:00:05]} 30. Be3 {[%emt 0:00:04]} Rxc6 31. Ra8 {[%emt 0:00:03]} a6 {[%emt 0:00:11]} 32. a4 {[%emt 0:01:03]} Bc3 {[%emt 0:01:23]} 33. Ra7 {[%emt 0:00:40]} Kg6 {[%emt 0:00:31]} 34. Rb7 {[%emt 0:00:49]} a5 {[%emt 0:02:33]} 35. Rb5 {[%emt 0:00:09]} Rc4 {[%emt 0:01:49]} 36. Rg5+ {[%emt 0:00:02]} Kf6 {[%emt 0:00:05]} 37. Rxh5 {[%emt 0:00:03]} Rxa4 {[%emt 0:01:00]} 38. Rc5 {[%emt 0:00:03]} Bb4 {[%emt 0:03:02]} 39. Rc6+ {[%emt 0:01:55]} Kf5 {[%emt 0:01:19]} 40. Kg2 {[%emt 0:00:00]} Ra3 {[%emt 0:00:00]} 41. Bd4 {[%emt 0:02:12]} f6 {[%emt 0:02:11]} 42. Rc7 {[%emt 0:00:36]} Rd3 {[%emt 0:02:15]} 43. Bb6 {[%emt 0:00:22]} g5 {[%emt 0:03:35]} 44. Bxa5 {[%emt 0:00:29]} Bxa5 {[%emt 0:00:30]} 45. Rc5+ {[%emt 0:00:21]} Kg6 {[%emt 0:00:22]} 46. Rxa5 {[%emt 0:00:02]} g4 {[%emt 0:03:22]} 47. Ra8 {[%emt 0:05:44]} f5 {[%emt 0:02:08]} 48. Rb8 {[%emt 0:00:37]} Ra3 {[%emt 0:00:11]} 49. Re8 {[%emt 0:00:16]} Ra2 {[%emt 0:00:30]} 50. Kf1 {[%emt 0:00:32]} Rb2 {[%emt 0:00:23]} 51. Re2 {[%emt 0:00:12]} Rb1+ {[%emt 0:00:31]} 52. Kg2 {[%emt 0:00:01]} Rb3 {[%emt 0:00:09]} 53. Re1 {[%emt 0:00:19]} Rb2 {[%emt 0:00:21]} 54. Re8 {[%emt 0:01:56]} Ra2 {[%emt 0:00:06]} 55. Rg8+ {[%emt 0:00:04]} Kf6 {[%emt 0:00:07]} 56. Rh8 {[%emt 0:00:02]} Kg5 {[%emt 0:00:36]} 57. h4+ {[%emt 0:00:08]} gxh3+ {[%emt 0:00:04]} 58. Rxh3 {[%emt 0:00:04]} f4 {[%emt 0:00:19]} 59. gxf4+ {[%emt 0:00:08]} Kxf4 {[%emt 0:00:06]} 60. Rh8 {[%emt 0:00:16]} Rb2 {[%emt 0:00:31]} 61. Rf8+ {[%emt 0:00:29]} Kg4 {[%emt 0:00:04]} 62. Ra8 {[%emt 0:00:04]} Rb3 {[%emt 0:07:32]} 63. Ra4+ {[%emt 0:00:17]} Kf5 {[%emt 0:00:11]} 64. f3 {[%emt 0:00:04]} Rb1 {[%emt 0:00:42]} 65. Kf2 {[%emt 0:01:16]} Rb8 {[%emt 0:00:52]} 66. Ra7 {[%emt 0:00:19]} Rb1 {[%emt 0:00:36]} 67. Rf7+ {[%emt 0:00:07]} Ke6 {[%emt 0:01:13]} 68. Rf8 {[%emt 0:00:45]} Ke5 {[%emt 0:00:36]} 69. Kg3 {[%emt 0:03:40]} Rg1+ {[%emt 0:00:06]} 70. Kh4 {[%emt 0:00:12]} Rg2 {[%emt 0:01:12]} 71. Rf7 {[%emt 0:01:01]} Rg1 {[%emt 0:01:16]} 72. Ra7 {[%emt 0:00:21]} Kf4 {[%emt 0:00:21]} 73. Rf7+ {[%emt 0:00:01]} Ke5 {[%emt 0:00:09]} 74. Kh5 {[%emt 0:00:04]} Rg2 {[%emt 0:00:47]} 75. f4+ {[%emt 0:00:08]} Ke6 {[%emt 0:00:10]} 76. Rf8 {[%emt 0:00:02]} Rg1 {[%emt 0:00:11]} 77. f5+ {[%emt 0:00:05]} Ke7 {[%emt 0:00:04]} 78. Ra8 {[%emt 0:00:02]} Kf6 {[%emt 0:00:12]} 79. Ra5 {[%emt 0:00:03]} Rg5+ {[%emt 0:00:23]} 80. Kh4 {[%emt 0:00:01]} Rxf5 {[%emt 0:00:09]} 81. Rxf5+ {[%emt 0:00:03]} Kxf5 {[%emt 0:00:08]} 1/2-1/2

[Event "EYCC Open-U12 2019"]
[Site "Bratislava"]
[Date "2019.08.02"]
[Round "1.2"]
[White "Aasen, Joakim"]
[Black "Samadov, Read"]
[Result "0-1"]
[ECO "A20"]
[WhiteElo "1718"]
[BlackElo "2230"]
[Annotator "NA"]
[PlyCount "70"]
[EventDate "2019.08.02"]
[EventType "swiss"]
[EventCountry "SVK"]
[SourceTitle "playchess.com"]
[Source "ChessBase"]
[SourceQuality "1"]
[TimeControl "40/5400+30:1800+30"]

1. c4 {[%emt 0:00:00]} e5 {[%emt 0:00:00]} 2. g3 {[%emt 0:00:00]} Nf6 {[%emt 0:00:00]} 3. Bg2 {[%emt 0:00:01]} c6 {[%emt 0:01:11]} 4. d4 {[%emt 0:00:31]} exd4 {[%emt 0:01:53]} 5. Qxd4 {[%emt 0:00:25]} d5 {[%emt 0:02:04]} 6. Nc3 {[%emt 0:03:15]} Be6 {[%emt 0:01:12]} 7. cxd5 {[%emt 0:00:40]} cxd5 {[%emt 0:00:12]} 8. e3 {[%emt 0:00:40]} Nc6 {[%emt 0:02:13]} 9. Qa4 {[%emt 0:01:42]} Be7 {[%emt 0:04:16]} 10. Nge2 {[%emt 0:01:37]} O-O {[%emt 0:02:53]} 11. O-O {[%emt 0:01:24]} Nd7 {[%emt 0:13:49]} 12. Rd1 {[%emt 0:05:06]} Nb6 {[%emt 0:08:32]} 13. Qc2 {[%emt 0:05:05]} Rc8 {[%emt 0:04:43]} 14. Nf4 {[%emt 0:08:21]} Bg4 {[%emt 0:09:46]} 15. f3 {[%emt 0:12:58]} Be6 {[%emt 0:01:37]} 16. a4 {[%emt 0:07:42]} a5 {[%emt 0:03:04]} 17. Qe2 {[%emt 0:04:39]} Nb4 {[%emt 0:07:17]} 18. Kh1 {[%emt 0:08:59]} Bc5 {[%emt 0:06:15]} 19. b3 {[%emt 0:11:09]} Qe7 {[%emt 0:06:51]} 20. Bb2 {[%emt 0:00:53]} Rfd8 {[%emt 0:01:16]} 21. Rac1 {[%emt 0:00:38]} Bf5 {[%emt 0:02:26]} 22. e4 {[%emt 0:06:33]} Bg6 {[%emt 0:03:31]} 23. exd5 {[%emt 0:02:14]} Qxe2 {[%emt 0:00:31]} 24. Ncxe2 {[%emt 0:00:27]} Bc2 {[%emt 0:02:26]} 25. Bh3 {[%emt 0:07:33]} Bxd1 {[%emt 0:02:03]} 26. Bxc8 {[%emt 0:00:32]} Bxe2 {[%emt 0:00:07]} 27. Bg4 {[%emt 0:00:22]} Be3 {[%emt 0:00:37]} 28. Nxe2 {[%emt 0:02:16]} Bxc1 {[%emt 0:00:05]} 29. Bxc1 {[%emt 0:01:02]} Nd3 {[%emt 0:00:41]} 30. Bf4 {[%emt 0:02:24]} Nxf4 {[%emt 0:00:20]} 31. Nxf4 {[%emt 0:00:35]} Nxd5 {[%emt 0:00:05]} 32. Nd3 {[%emt 0:00:59]} Ne3 {[%emt 0:00:18]} 33. Nf2 {[%emt 0:01:13]} Rd2 {[%emt 0:00:24]} 34. Kg1 {[%emt 0:00:18]} Nxg4 {[%emt 0:00:08]} 35. Nxg4 {[%emt 0:00:19]} Rb2 {[%emt 0:00:05]} 0-1

[Event "EYCC Open-U12 2019"]
[Site "Bratislava"]
[Date "2019.08.02"]
[Round "1.3"]
[White "Han, Yichen"]
[Black "Gschiel, Alexander"]
[Result "1-0"]
[ECO "A46"]
[WhiteElo "2217"]
[BlackElo "1768"]
[Annotator "NA"]
[PlyCount "93"]
[EventDate "2019.08.02"]
[EventType "swiss"]
[EventCountry "SVK"]
[SourceTitle "playchess.com"]
[Source "ChessBase"]
[SourceQuality "1"]
[TimeControl "40/5400+30:1800+30"]

1. d4 {[%emt 0:00:00]} Nf6 {[%emt 0:00:00]} 2. Nf3 {[%emt 0:00:00]} e6 {[%emt 0:00:00]} 3. Bf4 {[%emt 0:00:00]} c5 {[%emt 0:00:18]} 4. e3 {[%emt 0:00:15]} Nc6 {[%emt 0:00:25]} 5. c3 {[%emt 0:00:29]} b6 {[%emt 0:00:28]} 6. h3 {[%emt 0:00:45]} Bb7 {[%emt 0:01:17]} 7. Bd3 {[%emt 0:00:20]} cxd4 {[%emt 0:00:48]} 8. exd4 {[%emt 0:00:24]} Be7 {[%emt 0:01:01]} 9. Nbd2 {[%emt 0:00:46]} d6 {[%emt 0:00:56]} 10. O-O {[%emt 0:00:48]} O-O {[%emt 0:02:34]} 11. Qe2 {[%emt 0:02:54]} Re8 {[%emt 0:02:34]} 12. Rfe1 {[%emt 0:01:38]} Qd7 {[%emt 0:02:57]} 13. Rad1 {[%emt 0:05:31]} Rac8 {[%emt 0:04:45]} 14. Bh2 {[%emt 0:01:55]} Bd8 {[%emt 0:02:56]} 15. Ne4 {[%emt 0:13:20]} Be7 {[%emt 0:05:31]} 16. Nfg5 {[%emt 0:05:57]} Nxe4 {[%emt 0:05:59]} 17. Nxe4 {[%emt 0:01:56]} Qc7 {[%emt 0:05:44]} 18. Qh5 {[%emt 0:01:39]} g6 {[%emt 0:05:22]} 19. Qh6 {[%emt 0:00:20]} Qd8 {[%emt 0:03:00]} 20. h4 {[%emt 0:03:39]} Na5 {[%emt 0:07:45]} 21. Ng5 {[%emt 0:02:22]} Bxg5 {[%emt 0:00:42]} 22. hxg5 {[%emt 0:00:11]} Nc4 {[%emt 0:03:07]} 23. Bxc4 {[%emt 0:01:51]} Rxc4 {[%emt 0:00:19]} 24. Rd3 {[%emt 0:00:46]} f5 {[%emt 0:18:27]} 25. gxf6 {[%emt 0:00:24]} Rc7 {[%emt 0:03:02]} 26. Rde3 {[%emt 0:07:31]} Qxf6 {[%emt 0:04:47]} 27. Bxd6 {[%emt 0:01:25]} Rf7 {[%emt 0:00:22]} 28. Bg3 {[%emt 0:01:54]} Bd5 {[%emt 0:01:12]} 29. b3 {[%emt 0:01:00]} b5 {[%emt 0:00:38]} 30. Re5 {[%emt 0:06:51]} Rc8 {[%emt 0:00:59]} 31. R1e3 {[%emt 0:00:56]} a5 {[%emt 0:01:44]} 32. Qh3 {[%emt 0:01:39]} Rff8 {[%emt 0:01:26]} 33. Bh4 {[%emt 0:03:42]} Qf7 {[%emt 0:00:33]} 34. f3 {[%emt 0:04:40]} a4 {[%emt 0:01:44]} 35. Bg5 {[%emt 0:00:50]} Rb8 {[%emt 0:02:05]} 36. Rxd5 {[%emt 0:01:02]} exd5 {[%emt 0:02:43]} 37. Re7 {[%emt 0:00:46]} axb3 {[%emt 0:01:34]} 38. axb3 {[%emt 0:00:09]} b4 {[%emt 0:00:25]} 39. Rxf7 {[%emt 0:00:29]} Rxf7 {[%emt 0:00:12]} 40. cxb4 {[%emt 0:00:00]} Rxb4 {[%emt 0:00:00]} 41. Bh6 {[%emt 0:01:06]} Rb8 {[%emt 0:01:02]} 42. Qe6 {[%emt 0:00:13]} Rd8 {[%emt 0:01:13]} 43. b4 {[%emt 0:00:08]} Rb8 {[%emt 0:00:19]} 44. b5 {[%emt 0:00:06]} Ra8 {[%emt 0:00:20]} 45. b6 {[%emt 0:00:06]} Rb8 {[%emt 0:00:32]} 46. b7 {[%emt 0:00:05]} Rd8 {[%emt 0:00:12]} 47. Qc8 1-0

[Event "EYCC Open-U12 2019"]
[Site "Bratislava"]
[Date "2019.08.02"]
[Round "1.4"]
[White "Gregoric, Andraz"]
[Black "Strybuk, Artsiom I"]
[Result "0-1"]
[ECO "C10"]
[WhiteElo "1911"]
[BlackElo "2193"]
[Annotator "NA"]
[PlyCount "154"]
[EventDate "2019.08.02"]
[EventType "swiss"]
[EventCountry "SVK"]
[SourceTitle "playchess.com"]
[Source "ChessBase"]
[SourceQuality "1"]
[TimeControl "40/5400+30:1800+30"]

1. e4 {[%emt 0:00:00]} e6 {[%emt 0:00:00]} 2. d4 {[%emt 0:00:00]} d5 {[%emt 0:00:00]} 3. Nd2 {[%emt 0:00:20]} dxe4 {[%emt 0:00:39]} 4. Nxe4 {[%emt 0:00:08]} Nd7 {[%emt 0:00:46]} 5. Nf3 {[%emt 0:02:19]} Ngf6 {[%emt 0:00:17]} 6. Nxf6+ {[%emt 0:04:35]} Nxf6 {[%emt 0:00:40]} 7. Bd3 {[%emt 0:00:19]} Be7 {[%emt 0:02:25]} 8. c3 {[%emt 0:01:00]} O-O {[%emt 0:00:21]} 9. O-O {[%emt 0:01:42]} b6 {[%emt 0:01:27]} 10. Qc2 {[%emt 0:02:12]} Bb7 {[%emt 0:01:21]} 11. Ng5 {[%emt 0:09:32]} h6 {[%emt 0:08:45]} 12. Nh7 {[%emt 0:03:26]} Re8 {[%emt 0:06:39]} 13. Nxf6+ {[%emt 0:00:17]} Bxf6 {[%emt 0:00:07]} 14. Bh7+ {[%emt 0:00:11]} Kf8 {[%emt 0:05:15]} 15. Be4 {[%emt 0:00:38]} Bxe4 {[%emt 0:01:17]} 16. Qxe4 {[%emt 0:00:07]} Qd5 {[%emt 0:00:58]} 17. Qxd5 {[%emt 0:08:09]} exd5 {[%emt 0:00:07]} 18. Bf4 {[%emt 0:13:24]} Re2 {[%emt 0:03:28]} 19. Rab1 {[%emt 0:00:24]} c6 {[%emt 0:13:20]} 20. Bd6+ {[%emt 0:00:39]} Ke8 {[%emt 0:01:39]} 21. Rfe1 {[%emt 0:00:34]} Rxe1+ {[%emt 0:00:37]} 22. Rxe1+ {[%emt 0:00:07]} Kd7 {[%emt 0:00:01]} 23. Bf4 {[%emt 0:04:02]} c5 {[%emt 0:05:58]} 24. Be3 {[%emt 0:10:37]} cxd4 {[%emt 0:03:41]} 25. cxd4 {[%emt 0:04:54]} Rc8 {[%emt 0:00:12]} 26. Kf1 {[%emt 0:00:20]} Rc4 {[%emt 0:09:21]} 27. b3 {[%emt 0:02:33]} Rc3 {[%emt 0:00:08]} 28. Re2 {[%emt 0:06:07]} Rd3 {[%emt 0:03:46]} 29. Re1 {[%emt 0:01:22]} Rc3 {[%emt 0:01:04]} 30. Re2 {[%emt 0:00:20]} h5 {[%emt 0:00:38]} 31. Ke1 {[%emt 0:02:40]} Rc8 {[%emt 0:05:25]} 32. Kd2 {[%emt 0:01:05]} Be7 {[%emt 0:01:32]} 33. Kd3 {[%emt 0:01:51]} Bd6 {[%emt 0:02:01]} 34. h3 {[%emt 0:01:22]} f6 {[%emt 0:00:59]} 35. f3 {[%emt 0:04:23]} g5 {[%emt 0:01:40]} 36. Rf2 {[%emt 0:02:39]} Rg8 {[%emt 0:01:01]} 37. Rf1 {[%emt 0:00:41]} f5 {[%emt 0:03:11]} 38. Bd2 {[%emt 0:03:38]} h4 {[%emt 0:03:11]} 39. Be3 {[%emt 0:03:32]} Be7 {[%emt 0:00:55]} 40. Rf2 {[%emt 0:00:00]} Bf6 {[%emt 0:00:00]} 41. Rf1 {[%emt 0:04:19]} a6 {[%emt 0:07:36]} 42. Rf2 {[%emt 0:04:59]} b5 {[%emt 0:01:14]} 43. Rf1 {[%emt 0:00:50]} a5 {[%emt 0:03:48]} 44. Rf2 {[%emt 0:11:04]} Ra8 {[%emt 0:02:58]} 45. a3 {[%emt 0:01:35]} a4 {[%emt 0:01:30]} 46. b4 {[%emt 0:00:39]} Rg8 {[%emt 0:03:39]} 47. Rf1 {[%emt 0:01:09]} Be7 {[%emt 0:02:19]} 48. Ke2 {[%emt 0:11:14]} Bd6 {[%emt 0:00:23]} 49. Rg1 {[%emt 0:03:47]} Rg6 {[%emt 0:03:45]} 50. Kd3 {[%emt 0:01:26]} Rg8 {[%emt 0:02:19]} 51. Ke2 {[%emt 0:00:15]} Ke6 {[%emt 0:00:27]} 52. Kd3 {[%emt 0:00:15]} g4 {[%emt 0:01:54]} 53. Bf2 {[%emt 0:01:33]} Be7 {[%emt 0:01:16]} 54. Be3 {[%emt 0:00:31]} Rg6 {[%emt 0:05:36]} 55. Kd2 {[%emt 0:00:52]} Bd6 {[%emt 0:00:35]} 56. Kd3 {[%emt 0:00:10]} Rg8 {[%emt 0:02:38]} 57. Bf2 {[%emt 0:00:07]} Kd7 {[%emt 0:02:48]} 58. Be3 {[%emt 0:01:28]} Bh2 {[%emt 0:01:59]} 59. Rh1 {[%emt 0:00:06]} gxf3 {[%emt 0:00:42]} 60. gxf3 {[%emt 0:00:44]} Rg2 {[%emt 0:00:39]} 61. Bd2 {[%emt 0:00:30]} Bd6 {[%emt 0:00:19]} 62. Be1 {[%emt 0:00:27]} Ra2 {[%emt 0:00:53]} 63. Bxh4 {[%emt 0:00:25]} Rxa3+ {[%emt 0:00:03]} 64. Ke2 {[%emt 0:00:46]} Ra2+ {[%emt 0:01:39]} 65. Kd3 {[%emt 0:00:26]} Bxb4 {[%emt 0:00:05]} 66. Bg5 {[%emt 0:00:38]} Rg2 {[%emt 0:01:10]} 67. h4 {[%emt 0:00:18]} a3 {[%emt 0:00:04]} 68. Be3 {[%emt 0:00:31]} Bf8 {[%emt 0:01:41]} 69. h5 {[%emt 0:00:10]} b4 {[%emt 0:01:44]} 70. h6 {[%emt 0:00:30]} b3 {[%emt 0:02:35]} 71. Kc3 {[%emt 0:00:55]} b2 {[%emt 0:01:05]} 72. h7 {[%emt 0:00:16]} a2 {[%emt 0:00:51]} 73. h8=Q {[%emt 0:00:17]} Bb4+ {[%emt 0:00:03]} 74. Kxb4 {[%emt 0:00:15]} b1=Q+ {[%emt 0:00:08]} 75. Rxb1 {[%emt 0:00:06]} axb1=Q+ {[%emt 0:00:08]} 76. Kc5 {[%emt 0:00:02]} Rc2+ {[%emt 0:00:06]} 77. Kxd5 {[%emt 0:00:09]} Qb5# {[%emt 0:00:02] f4} 0-1

[Event "EYCC Open-U12 2019"]
[Site "Bratislava"]
[Date "2019.08.02"]
[Round "1.5"]
[White "Kvaloy, Aksel Bu"]
[Black "Rakovsky, Jakub"]
[Result "1-0"]
[ECO "B51"]
[WhiteElo "2205"]
[BlackElo "1663"]
[Annotator "NA"]
[PlyCount "51"]
[EventDate "2019.08.02"]
[EventType "swiss"]
[EventCountry "SVK"]
[SourceTitle "playchess.com"]
[Source "ChessBase"]
[SourceQuality "1"]
[TimeControl "40/5400+30:1800+30"]

1. e4 {[%emt 0:00:00]} c5 {[%emt 0:00:00]} 2. Nf3 {[%emt 0:00:00]} d6 {[%emt 0:00:01]} 3. Bb5+ {[%emt 0:00:00]} Nd7 {[%emt 0:00:54]} 4. O-O {[%emt 0:00:12]} a6 {[%emt 0:00:20]} 5. Bd3 {[%emt 0:01:19]} e5 {[%emt 0:02:56]} 6. c3 {[%emt 0:00:51]} Ngf6 {[%emt 0:00:15]} 7. Bc2 {[%emt 0:01:40]} Be7 {[%emt 0:01:05]} 8. d4 {[%emt 0:04:25]} b6 {[%emt 0:03:06]} 9. Qe2 {[%emt 0:03:31]} O-O {[%emt 0:01:28]} 10. Rd1 {[%emt 0:01:28]} Qc7 {[%emt 0:00:47]} 11. a4 {[%emt 0:04:57]} Bb7 {[%emt 0:02:08]} 12. b3 {[%emt 0:04:35]} Rfe8 {[%emt 0:02:14]} 13. dxe5 {[%emt 0:04:26]} Nxe5 {[%emt 0:05:50]} 14. Nxe5 {[%emt 0:02:15]} dxe5 {[%emt 0:00:01]} 15. Bg5 {[%emt 0:01:48]} Rad8 {[%emt 0:00:57]} 16. Nd2 {[%emt 0:00:43]} Rd7 {[%emt 0:07:31]} 17. Nc4 {[%emt 0:11:19]} Red8 {[%emt 0:01:37]} 18. Rxd7 {[%emt 0:00:25]} Rxd7 {[%emt 0:03:08]} 19. Ne3 {[%emt 0:01:32]} h6 {[%emt 0:11:21]} 20. Bh4 {[%emt 0:05:57]} Qd8 {[%emt 0:04:29]} 21. Nf5 {[%emt 0:02:47]} Kf8 {[%emt 0:09:10]} 22. Rd1 {[%emt 0:12:34]} Rxd1+ {[%emt 0:01:02]} 23. Bxd1 {[%emt 0:00:14]} Bxe4 {[%emt 0:05:52]} 24. Nxe7 {[%emt 0:00:52]} Qxe7 {[%emt 0:09:48]} 25. Bxf6 {[%emt 0:02:39]} Qb7 {[%emt 0:00:01]} 26. f3 {[%emt 0:01:01]} 1-0

[Event "EYCC Open-U12 2019"]
[Site "Bratislava"]
[Date "2019.08.02"]
[Round "1.6"]
[White "Janeczko, Jakub"]
[Black "Petrovskiy, Vadim"]
[Result "0-1"]
[ECO "B33"]
[WhiteElo "1663"]
[BlackElo "2090"]
[Annotator "NA"]
[PlyCount "82"]
[EventDate "2019.08.02"]
[EventType "swiss"]
[EventCountry "SVK"]
[SourceTitle "playchess.com"]
[Source "ChessBase"]
[SourceQuality "1"]
[TimeControl "40/5400+30:1800+30"]

1. e4 {[%emt 0:00:00]} c5 {[%emt 0:00:00]} 2. Nf3 {[%emt 0:00:00]} Nc6 {[%emt 0:00:00]} 3. d4 {[%emt 0:00:00]} cxd4 {[%emt 0:00:00]} 4. Nxd4 {[%emt 0:00:00]} Nf6 {[%emt 0:00:00]} 5. Nc3 {[%emt 0:00:05]} e6 {[%emt 0:00:04]} 6. Ndb5 {[%emt 0:00:25]} d6 {[%emt 0:00:29]} 7. Bf4 {[%emt 0:03:37]} e5 {[%emt 0:00:10]} 8. Bg5 {[%emt 0:00:05]} a6 {[%emt 0:00:09]} 9. Na3 {[%emt 0:00:37]} b5 {[%emt 0:00:15]} 10. Nd5 {[%emt 0:01:07]} Be7 {[%emt 0:00:11]} 11. Bxf6 {[%emt 0:00:10]} Bxf6 {[%emt 0:00:04]} 12. c3 {[%emt 0:00:08]} O-O {[%emt 0:00:22]} 13. Nc2 {[%emt 0:01:21]} Bg5 {[%emt 0:00:08]} 14. h4 {[%emt 0:05:43]} Bh6 {[%emt 0:00:45]} 15. g4 {[%emt 0:02:49]} f6 {[%emt 0:03:29]} 16. Nce3 {[%emt 0:04:11]} Kh8 {[%emt 0:01:09]} 17. Be2 {[%emt 0:05:02]} Rb8 {[%emt 0:03:21]} 18. Qb3 {[%emt 0:12:03]} Be6 {[%emt 0:02:35]} 19. Nf5 {[%emt 0:03:37]} Bf4 {[%emt 0:01:40]} 20. Qd1 {[%emt 0:06:18]} Qd7 {[%emt 0:03:55]} 21. a3 {[%emt 0:17:29]} g6 {[%emt 0:02:13]} 22. Nfe3 {[%emt 0:03:13]} Rbe8 {[%emt 0:08:02]} 23. h5 {[%emt 0:03:36]} Kg7 {[%emt 0:02:45]} 24. a4 {[%emt 0:04:36]} Rb8 {[%emt 0:02:28]} 25. axb5 {[%emt 0:00:41]} axb5 {[%emt 0:00:02]} 26. Qd3 {[%emt 0:06:27]} Nd8 {[%emt 0:06:02]} 27. hxg6 {[%emt 0:02:36]} hxg6 {[%emt 0:00:43]} 28. Nxf4 {[%emt 0:06:53]} exf4 {[%emt 0:00:08]} 29. Ng2 {[%emt 0:00:14]} g5 {[%emt 0:11:51]} 30. e5 {[%emt 0:02:33]} Kg8 {[%emt 0:02:42]} 31. exd6 {[%emt 0:02:53]} Nc6 {[%emt 0:00:37]} 32. Qg6+ {[%emt 0:03:40]} Qg7 {[%emt 0:00:03]} 33. Qxg7+ {[%emt 0:00:12]} Kxg7 {[%emt 0:00:02]} 34. O-O-O {[%emt 0:00:35]} Ne5 {[%emt 0:01:20]} 35. Ne1 {[%emt 0:02:44]} b4 {[%emt 0:13:45]} 36. Nf3 {[%emt 0:00:26]} Bb3 {[%emt 0:02:25]} 37. Rd2 {[%emt 0:01:35]} Ra8 {[%emt 0:02:01]} 38. Bd3 {[%emt 0:00:45]} Nxd3+ {[%emt 0:00:58]} 39. Rxd3 {[%emt 0:00:03]} Ra1+ {[%emt 0:00:10]} 40. Kd2 {[%emt 0:00:00]} Rxh1 {[%emt 0:00:00]} 41. d7 {[%emt 0:00:06]} Rd1+ {[%emt 0:00:23]} 0-1

[Event "EYCC Open-U12 2019"]
[Site "Bratislava"]
[Date "2019.08.02"]
[Round "1.7"]
[White "Ozkan, Taha"]
[Black "Gudmundsson, Gunnar Erik"]
[Result "1-0"]
[ECO "D05"]
[WhiteElo "2140"]
[BlackElo "1746"]
[Annotator "NA"]
[PlyCount "57"]
[EventDate "2019.08.02"]
[EventType "swiss"]
[EventCountry "SVK"]
[SourceTitle "playchess.com"]
[Source "ChessBase"]
[SourceQuality "1"]
[TimeControl "40/5400+30:1800+30"]

1. d4 {[%emt 0:00:00]} Nf6 {[%emt 0:00:00]} 2. Nf3 {[%emt 0:00:00]} e6 {[%emt 0:00:00]} 3. e3 {[%emt 0:00:00]} d5 {[%emt 0:00:12]} 4. Bd3 {[%emt 0:00:02]} Nbd7 {[%emt 0:01:30]} 5. b3 {[%emt 0:01:57]} Bd6 {[%emt 0:02:25]} 6. Bb2 {[%emt 0:00:25]} c5 {[%emt 0:01:57]} 7. O-O {[%emt 0:01:33]} O-O {[%emt 0:01:13]} 8. Ne5 {[%emt 0:00:52]} Qc7 {[%emt 0:10:44]} 9. f4 {[%emt 0:00:29]} Ne4 {[%emt 0:00:31]} 10. Nd2 {[%emt 0:04:24]} f5 {[%emt 0:02:18]} 11. c4 {[%emt 0:03:20]} b6 {[%emt 0:09:42]} 12. Rc1 {[%emt 0:04:19]} Ndf6 {[%emt 0:12:44]} 13. Nxe4 {[%emt 0:11:47]} dxe4 {[%emt 0:04:54]} 14. Be2 {[%emt 0:01:13]} Bb7 {[%emt 0:00:54]} 15. Qc2 {[%emt 0:06:00]} Rac8 {[%emt 0:01:57]} 16. Rfd1 {[%emt 0:02:38]} Rfd8 {[%emt 0:02:01]} 17. Rd2 {[%emt 0:07:39]} Be7 {[%emt 0:07:33]} 18. Rcd1 {[%emt 0:02:52]} a6 {[%emt 0:04:43]} 19. Kf2 {[%emt 0:14:56]} cxd4 {[%emt 0:07:53]} 20. Bxd4 {[%emt 0:04:26]} Nd5 {[%emt 0:07:57]} 21. Qb2 {[%emt 0:02:21]} Nf6 {[%emt 0:05:25]} 22. b4 {[%emt 0:05:45]} Bc6 {[%emt 0:03:06]} 23. Qb3 {[%emt 0:05:24]} Qb8 {[%emt 0:03:55]} 24. Bxb6 {[%emt 0:08:11]} Rxd2 {[%emt 0:02:17]} 25. Rxd2 {[%emt 0:00:11]} Qxb6 {[%emt 0:00:35]} 26. c5 {[%emt 0:00:18]} Ba4 {[%emt 0:02:28]} 27. Qxa4 {[%emt 0:00:34]} Qc7 {[%emt 0:02:29]} 28. Qxa6 {[%emt 0:02:19]} Bf8 {[%emt 0:01:53]} 29. Qxe6+ {[%emt 0:00:37]} 1-0